fUST/lending_fUST_20240705
["ID","MTS","AMOUNT","RATE_DAILY","PERIOD"]
[331178221,1720121451556,-776.05,0.00014794,2]
[331178222,1720121451566,-500.0,0.00014794,2]
[331178223,1720121451575,-500.0,0.00014794,2]
[331178224,1720121451585,-500.0,0.00014794,2]
[331178225,1720121451594,-500.0,0.00014794,2]
[331178226,1720121451603,-500.0,0.00014794,2]
[331178227,1720121451614,-707.1,0.00014794,2]
[331178228,1720121451624,-7140.65,0.00014794,2]
[331178229,1720121451633,-3323.24,0.00014794,2]
[331178230,1720121451648,-500.0,0.00014794,2]
[331178231,1720121451658,-500.0,0.00014794,2]
[331178232,1720121451668,-500.0,0.00014794,2]
[331178233,1720121451678,-500.0,0.00014794,2]
[331178234,1720121451694,-500.0,0.00014794,2]
[331178235,1720121451704,-741.61,0.00014794,2]
[331178236,1720121451713,-500.0,0.00014794,2]
[331178237,1720121451723,-738.09,0.00014794,2]
[331178238,1720121451733,-2463.48,0.00014794,2]
[331178239,1720121451742,-500.0,0.00014794,2]
[331178240,1720121451751,-848.63,0.00014794,2]
[331178241,1720121451762,-2911.88,0.00014794,2]
[331178242,1720121451772,-500.0,0.00014794,2]
[331178243,1720121451782,-151.0,0.00014794,2]
[331178244,1720121451791,-5355.23,0.00014794,2]
[331178245,1720121451800,-550.19,0.00014794,2]
[331178246,1720121451810,-151.0,0.00014794,2]
[331178247,1720121451819,-1486.14,0.00014794,2]
[331178248,1720121451828,-961.7,0.00014794,2]
[331178249,1720121451838,-500.0,0.00014794,2]
[331178250,1720121451847,-500.0,0.00014794,2]
[331178251,1720121451858,-628.03,0.00014794,2]
[331178252,1720121451867,-500.0,0.00014794,2]
[331178253,1720121451877,-2195.93,0.00014794,2]
[331178254,1720121451890,-500.0,0.00014794,2]
[331178255,1720121451899,-500.0,0.00014794,2]
[331178256,1720121451909,-1005.50937,0.00014794,2]
[331178257,1720121451918,-1005.50937,0.00014794,2]
[331178258,1720121451927,-500.0,0.00014794,2]
[331178259,1720121451936,-155.027264,0.00014794,2]
[331178260,1720121451946,-4205.13,0.00014794,2]
[331178261,1720121451955,-151.0,0.00014794,2]
[331178262,1720121451965,-511.26,0.00014794,2]
[331178263,1720121451974,-16056.3,0.00014794,2]
[331178264,1720121451984,-6385.07,0.00014794,2]
[331178265,1720121451993,-275.557061,0.00014794,2]
[331178266,1720121452002,-500.0,0.00014794,2]
[331178267,1720121452012,-275.557061,0.00014794,2]
[331178268,1720121452021,-1515.37,0.00014794,2]
[331178269,1720121452030,-500.0,0.00014794,2]
[331178270,1720121452039,-271.022102,0.00014794,2]
[331178271,1720121452048,-271.022102,0.00014794,2]
[331178272,1720121452057,-2542.25,0.00014794,2]
[331178273,1720121452065,-700.89,0.00014794,2]
[331178274,1720121452074,-151.0,0.00014794,2]
[331178275,1720121452083,-377.490456,0.00014794,2]
[331178276,1720121452092,-151.0,0.00014794,2]
[331178277,1720121452101,-151.0,0.00014794,2]
[331178278,1720121452110,-377.490456,0.00014794,2]
[331178279,1720121452120,-885.973924,0.00014794,2]
[331178280,1720121452129,-3393.5,0.00014794,2]
[331178281,1720121452141,-745.37,0.00014794,2]
[331178282,1720121452151,-898.58,0.00014794,2]
[331178283,1720121452160,-257.82,0.00014794,2]
[331178284,1720121452169,-885.973924,0.00014794,2]
[331178285,1720121452179,-1238.33,0.00014794,2]
[331178286,1720121452188,-151.0,0.00014794,2]
[331178287,1720121452197,-151.0,0.00014794,2]
[331178288,1720121452206,-153.243,0.00014942,2]
[331178289,1720121452215,-859.172,0.00014942,2]
[331178290,1720121452224,-894.828,0.00014942,2]
[331178291,1720121452234,-250.478817,0.00014942,2]
[331178292,1720121452243,-150.0,0.00014946,2]
[331178293,1720121452252,-150.0,0.00014981,2]
[331178294,1720121452262,-1345.0956938,0.00014989,2]
[331178295,1720121452273,-151.0,0.00014997,2]
[331178296,1720121452283,-151.0,0.00014997,2]
[331178297,1720121452292,-151.0,0.00014997,2]
[331178298,1720121452302,-151.0,0.00014997,2]
[331178299,1720121452313,-418.851208,0.00014997,2]
[331178300,1720121452323,-418.851208,0.00014997,2]
[331178301,1720121452333,-151.0,0.00014997,2]
[331178302,1720121452343,-195.102655,0.00014997,2]
[331178303,1720121452353,-195.102655,0.00014997,2]
[331178304,1720121452362,-151.0,0.00014997,2]
[331178305,1720121452372,-6076.9012323,0.00014998,2]
[331178306,1720121452382,-11029.28750384,0.00014998,2]
[331178307,1720121452393,-786.252289,0.00014998,2]
[331178308,1720121452403,-786.252289,0.00014998,2]
[331178309,1720121452412,-151.0,0.00014998,2]
[331178310,1720121452422,-153.001941,0.00014998,2]
[331178311,1720121452432,-151.0,0.00014998,2]
[331178312,1720121452442,-162.46953,0.00014998,2]
[331178313,1720121452451,-3137.77932824,0.00014999,2]
[331178314,1720121452461,-4710.72024946,0.00014999,2]
[331178315,1720121452471,-1434.44237247,0.00014999,2]
[331178316,1720121452482,-1463.29635585,0.00014999,2]
[331178317,1720121452492,-2126.43441341,0.00014999,2]
[331178318,1720121452502,-1916.29526789,0.00014999,2]
[331178319,1720121452513,-2118.3618334,0.00014999,2]
[331178320,1720121452522,-1634.59229075,0.00014999,2]
[331178321,1720121452532,-2132.45671248,0.00014999,2]
[331178322,1720121452541,-1500.0,0.00014999,2]
[331178323,1720121452551,-790.79551416,0.00014999,2]
[331178324,1720121452562,-151.0,0.00014999,2]
[331178325,1720121452571,-151.0,0.00014999,2]
[331178326,1720121452581,-593.21496,0.00014999,2]
[331178327,1720121452591,-593.21496,0.00014999,2]
[331178328,1720121452600,-151.0,0.00014999,2]
[331178329,1720121452611,-151.0,0.00014999,2]
[331178330,1720121452621,-151.0,0.00014999,2]
[331178331,1720121452630,-151.0,0.00014999,2]
[331178332,1720121452644,-186.244228,0.00014999,2]
[331178333,1720121452659,-151.0,0.00014999,2]
[331178334,1720121452670,-151.0,0.00014999,2]
[331178335,1720121452680,-151.0,0.00014999,2]
[331178336,1720121452691,-151.0,0.00014999,2]
[331178337,1720121452702,-151.0,0.00014999,2]
[331178338,1720121452712,-151.0,0.00014999,2]
[331178339,1720121452721,-1039.06688618,0.00015,2]
[331178340,1720121452731,-2420.55776569,0.00015,2]
[331178341,1720121452743,-808.0087546,0.00015,2]
[331178342,1720121452753,-313.46204559,0.00015,2]
[331178343,1720121452763,-937.8,0.00015,2]
[331178344,1720121452773,-948.84245203,0.00015,2]
[331178345,1720121452783,-408.74962315,0.00015,2]
[331178346,1720121452793,-2832.46914027,0.00015,2]
[331178347,1720121452802,-151.0,0.00015,2]
[331178348,1720121452812,-201.62342055,0.00015046,2]
[331178349,1720121452822,-500.0,0.00015068,2]
[331178350,1720121452831,-500.0,0.00015068,2]
[331178351,1720121452841,-500.0,0.00015068,2]
[331178352,1720121452850,-500.0,0.00015068,2]
[331178353,1720121452860,-500.0,0.00015068,2]
[331178354,1720121452870,-500.0,0.00015068,2]
[331178355,1720121452879,-500.0,0.00015068,2]
[331178356,1720121452893,-500.0,0.00015068,2]
[331178357,1720121452903,-500.0,0.00015068,2]
[331178358,1720121452912,-500.0,0.00015068,2]
[331178359,1720121452921,-500.0,0.00015068,2]
[331178360,1720121452931,-1049.4,0.00015068,2]
[331178361,1720121452941,-622.8,0.00015068,2]
[331178362,1720121452951,-500.0,0.00015068,2]
[331178363,1720121452961,-534.52,0.00015068,2]
[331178364,1720121452971,-500.0,0.00015068,2]
[331178365,1720121452980,-500.0,0.00015068,2]
[331178366,1720121452989,-1242.97,0.00015068,2]
[331178367,1720121452998,-500.0,0.00015068,2]
[331178368,1720121453008,-233.92,0.00015068,2]
[331178369,1720121453018,-786.252289,0.00015068,2]
[331178370,1720121453027,-786.252289,0.00015068,2]
[331178371,1720121453036,-954.4,0.00015068,2]
[331178372,1720121453045,-1113.88,0.00015068,2]
[331178373,1720121453055,-151.0,0.00015068,2]
[331178374,1720121453064,-500.0,0.00015068,2]
[331178375,1720121453074,-500.0,0.00015068,2]
[331178376,1720121453083,-573.51,0.00015068,2]
[331178377,1720121453092,-640.12682778,0.00015068,2]
[331178378,1720121453101,-494.00240736,0.00015068,2]
[331178379,1720121453111,-500.0,0.00015068,2]
[331178380,1720121453120,-664.61,0.00015068,2]
[331178381,1720121453129,-500.0,0.00015068,2]
[331178382,1720121453140,-500.0,0.00015068,2]
[331178383,1720121453153,-630.02,0.00015068,2]
[331178384,1720121453163,-500.0,0.00015068,2]
[331178385,1720121453173,-500.0,0.00015068,2]
[331178386,1720121453182,-500.0,0.00015068,2]
[331178387,1720121453194,-500.0,0.00015068,2]
[331178388,1720121453203,-500.0,0.00015068,2]
[331178389,1720121453212,-500.0,0.00015068,2]
[331178390,1720121453222,-151.0,0.00015068,2]
[331178391,1720121453232,-582.35,0.00015068,2]
[331178392,1720121453241,-4442.33,0.00015068,2]
[331178393,1720121453251,-567.13,0.00015068,2]
[331178394,1720121453260,-500.0,0.00015068,2]
[331178395,1720121453270,-500.0,0.00015068,2]
[331178396,1720121453280,-500.0,0.00015068,2]
[331178397,1720121453290,-500.0,0.00015068,2]
[331178398,1720121453300,-151.0,0.00015068,2]
[331178399,1720121453309,-726.31,0.00015068,2]
[331178400,1720121453319,-500.0,0.00015068,2]
[331178401,1720121453330,-615.99,0.00015068,2]
[331178402,1720121453339,-500.0,0.00015068,2]
[331178403,1720121453349,-151.0,0.00015068,2]
[331178404,1720121453359,-500.0,0.00015068,2]
[331178405,1720121453368,-151.0,0.00015068,2]
[331178406,1720121453377,-776.05,0.00015068,2]
[331178407,1720121453387,-500.0,0.00015068,2]
[331178408,1720121453402,-500.0,0.00015068,2]
[331178409,1720121453411,-500.0,0.00015068,2]
[331178410,1720121453420,-500.0,0.00015068,2]
[331178411,1720121453430,-707.1,0.00015068,2]
[331178412,1720121453439,-418.851208,0.00015068,2]
[331178413,1720121453448,-7140.65,0.00015068,2]
[331178414,1720121453457,-418.851208,0.00015068,2]
[331178415,1720121453467,-500.0,0.00015068,2]
[331178416,1720121453476,-3323.24,0.00015068,2]
[331178417,1720121453486,-151.0,0.00015068,2]
[331178418,1720121453495,-195.102655,0.00015068,2]
[331178419,1720121453505,-500.0,0.00015068,2]
[331178420,1720121453514,-500.0,0.00015068,2]
[331178421,1720121453524,-195.102655,0.00015068,2]
[331178422,1720121453533,-151.0,0.00015068,2]
[331178423,1720121453542,-500.0,0.00015068,2]
[331178424,1720121453552,-741.61,0.00015068,2]
[331178425,1720121453562,-500.0,0.00015068,2]
[331178426,1720121453571,-738.09,0.00015068,2]
[331178427,1720121453581,-2463.48,0.00015068,2]
[331178428,1720121453590,-848.63,0.00015068,2]
[331178429,1720121453600,-2911.88,0.00015068,2]
[331178430,1720121453609,-310.49733256,0.00015068,2]
[331178431,1720121453619,-151.0,0.00015068,2]
[331178432,1720121453628,-5355.23,0.00015068,2]
[331178433,1720121453639,-550.19,0.00015068,2]
[331178434,1720121453650,-151.0,0.00015068,2]
[331178435,1720121453668,-1486.14,0.00015068,2]
[331178436,1720121453678,-961.7,0.00015068,2]
[331178437,1720121453688,-500.0,0.00015068,2]
[331178438,1720121453699,-500.0,0.00015068,2]
[331178439,1720121453708,-628.03,0.00015068,2]
[331178440,1720121453718,-2195.93,0.00015068,2]
[331178441,1720121453727,-500.0,0.00015068,2]
[331178442,1720121453738,-1005.50937,0.00015068,2]
[331178443,1720121453747,-399.86,0.00015068,2]
[331178444,1720121453756,-1005.50937,0.00015068,2]
[331178445,1720121453765,-500.0,0.00015068,2]
[331178446,1720121453774,-4205.13,0.00015068,2]
[331178447,1720121453783,-151.0,0.00015068,2]
[331178448,1720121453883,-511.26,0.00015068,2]
[331178449,1720121453897,-16056.3,0.00015068,2]
[331178450,1720121453906,-6385.07,0.00015068,2]
[331178451,1720121453915,-275.557061,0.00015068,2]
[331178452,1720121453923,-500.0,0.00015068,2]
[331178453,1720121453933,-275.557061,0.00015068,2]
[331178454,1720121453941,-1515.37,0.00015068,2]
[331178455,1720121453950,-500.0,0.00015068,2]
[331178456,1720121453959,-271.022102,0.00015068,2]
[331178457,1720121453968,-271.022102,0.00015068,2]
[331178458,1720121453978,-2542.25,0.00015068,2]
[331178459,1720121453987,-700.89,0.00015068,2]
[331178460,1720121453996,-151.0,0.00015068,2]
[331178461,1720121454006,-377.490456,0.00015068,2]
[331178462,1720121454015,-151.0,0.00015068,2]
[331178463,1720121454024,-377.490456,0.00015068,2]
[331178464,1720121454034,-885.973924,0.00015068,2]
[331178465,1720121454044,-745.37,0.00015068,2]
[331178466,1720121454054,-3393.5,0.00015068,2]
[331178467,1720121454063,-898.58,0.00015068,2]
[331178468,1720121454072,-885.973924,0.00015068,2]
[331178469,1720121454082,-1238.33,0.00015068,2]
[331178470,1720121454091,-151.0,0.00015068,2]
[331178471,1720121454101,-151.0,0.00015068,2]
[331178472,1720121454110,-154.706229,0.00015342,2]
[331178473,1720121454119,-500.0,0.00015342,2]
[331178474,1720121454129,-500.0,0.00015342,2]
[331178475,1720121454142,-500.0,0.00015342,2]
[331178476,1720121454154,-500.0,0.00015342,2]
[331178477,1720121454164,-198.822259,0.00015342,2]
[331178478,1720121454173,-500.0,0.00015342,2]
[331178479,1720121454182,-500.0,0.00015342,2]
[331178480,1720121454191,-151.0,0.00015342,2]
[331178481,1720121454201,-500.0,0.00015342,2]
[331178482,1720121454209,-500.0,0.00015342,2]
[331178483,1720121454218,-500.0,0.00015342,2]
[331178484,1720121454228,-500.0,0.00015342,2]
[331178485,1720121454238,-1049.4,0.00015342,2]
[331178486,1720121454247,-500.0,0.00015342,2]
[331178487,1720121454256,-534.52,0.00015342,2]
[331178488,1720121454266,-606.43,0.00015342,2]
[331178489,1720121454275,-500.0,0.00015342,2]
[331178490,1720121454285,-593.21496,0.00015342,2]
[331178491,1720121454294,-593.21496,0.00015342,2]
[331178492,1720121454304,-1242.97,0.00015342,2]
[331178493,1720121454313,-151.0,0.00015342,2]
[331178494,1720121454323,-151.0,0.00015342,2]
[331178495,1720121454334,-151.0,0.00015342,2]
[331178496,1720121454344,-954.4,0.00015342,2]
[331178497,1720121454354,-1113.88,0.00015342,2]
[331178498,1720121454363,-500.0,0.00015342,2]
[331178499,1720121454373,-385.09,0.00015342,2]
[331178500,1720121454383,-573.51,0.00015342,2]
[331178501,1720121454395,-500.0,0.00015342,2]
[331178502,1720121454404,-664.61,0.00015342,2]
[331178503,1720121454414,-500.0,0.00015342,2]
[331178504,1720121454424,-151.0,0.00015342,2]
[331178505,1720121454433,-151.0,0.00015342,2]
[331178506,1720121454443,-500.0,0.00015342,2]
[331178507,1720121454453,-630.02,0.00015342,2]
[331178508,1720121454463,-500.0,0.00015342,2]
[331178509,1720121454472,-151.0,0.00015342,2]
[331178510,1720121454482,-151.0,0.00015342,2]
[331178511,1720121454492,-500.0,0.00015342,2]
[331178512,1720121454502,-151.0,0.00015342,2]
[331178513,1720121454511,-406.96696057,0.00015342,2]
[331178514,1720121454520,-500.0,0.00015342,2]
[331178515,1720121454531,-500.0,0.00015342,2]
[331178516,1720121454540,-500.0,0.00015342,2]
[331178517,1720121454550,-582.35,0.00015342,2]
[331178518,1720121454560,-4442.33,0.00015342,2]
[331178519,1720121454570,-567.13,0.00015342,2]
[331178520,1720121454580,-500.0,0.00015342,2]
[331178521,1720121454590,-320.9344872,0.00015342,2]
[331178522,1720121454599,-500.0,0.00015342,2]
[331178523,1720121454608,-500.0,0.00015342,2]
[331178524,1720121454617,-726.31,0.00015342,2]
[331178525,1720121454627,-500.0,0.00015342,2]
[331178526,1720121454636,-615.99,0.00015342,2]
[331178527,1720121454649,-500.0,0.00015342,2]
[331178528,1720121454660,-776.05,0.00015342,2]
[331178529,1720121454671,-500.0,0.00015342,2]
[331178530,1720121454681,-500.0,0.00015342,2]
[331178531,1720121454692,-500.0,0.00015342,2]
[331178532,1720121454704,-500.0,0.00015342,2]
[331178533,1720121454713,-707.1,0.00015342,2]
[331178534,1720121454723,-7140.65,0.00015342,2]
[331178535,1720121454732,-500.0,0.00015342,2]
[331178536,1720121454742,-3323.24,0.00015342,2]
[331178537,1720121454751,-500.0,0.00015342,2]
[331178538,1720121454760,-500.0,0.00015342,2]
[331178539,1720121454771,-741.61,0.00015342,2]
[331178540,1720121454780,-738.09,0.00015342,2]
[331178541,1720121454790,-2463.48,0.00015342,2]
[331178542,1720121454800,-848.63,0.00015342,2]
[331178543,1720121454810,-2911.88,0.00015342,2]
[331178544,1720121454820,-5355.23,0.00015342,2]
[331178545,1720121454829,-550.19,0.00015342,2]
[331178546,1720121454839,-1486.14,0.00015342,2]
[331178547,1720121454849,-961.7,0.00015342,2]
[331178548,1720121454858,-500.0,0.00015342,2]
[331178549,1720121454868,-500.0,0.00015342,2]
[331178550,1720121454879,-628.03,0.00015342,2]
[331178551,1720121454888,-2195.93,0.00015342,2]
[331178552,1720121454900,-500.0,0.00015342,2]
[331178553,1720121454909,-500.0,0.00015342,2]
[331178554,1720121454919,-4205.13,0.00015342,2]
[331178555,1720121454927,-511.26,0.00015342,2]
[331178556,1720121454937,-10711.76909065,0.00015342,2]
[331178557,1720121455032,-4452.6494813,0.00015342,2]
[331178558,1720121455044,-891.88142805,0.00015342,2]
[331178559,1720121455054,-6385.07,0.00015342,2]
[331178560,1720121455063,-470.67094278,0.00015342,2]
[331178561,1720121455072,-1515.37,0.00015342,2]
[331178562,1720121455082,-737.12816517,0.00015342,2]
[331178563,1720121455101,-1805.12183483,0.00015342,2]
[331178564,1720121455110,-700.89,0.00015342,2]
[331178565,1720121455120,-1787.0133657,0.00015342,2]
[331178571,1720121832357,7234.07750944,0.0001,2]
[331179638,1720122009402,512.3143884,9.999e-05,2]
[331179639,1720122021340,661.12832609,9.999e-05,2]
[331179641,1720122058452,298.75379421,9.999e-05,2]
[331179642,1720122165709,155.35607975,9.999e-05,2]
[331179644,1720122277182,5999.98888189,0.000147,7]
[331179682,1720122633425,-705.58178986,0.0001182,2]
[331179684,1720122633435,-877.1743928,0.0001192,2]
[331179686,1720122633445,-300.0,0.00012445,2]
[331179688,1720122633454,-300.0,0.00012445,2]
[331179690,1720122633463,-5235.14521166,0.00012446,2]
[331179692,1720122633475,-19664.85478834,0.00012446,2]
[331179694,1720122633484,-437.38100106,0.00013598,2]
[331179696,1720122633493,-3003.35554838,0.00013598,2]
[331179698,1720122633503,-807.05741628,0.00013688,2]
[331179700,1720122633511,-201.76435407,0.00013689,2]
[331179702,1720122633521,-509.93924182,0.00013698,2]
[331179704,1720122633531,-500.0,0.00013698,2]
[331179706,1720122633540,-500.0,0.00013698,2]
[331179708,1720122633549,-500.0,0.00013698,2]
[331179710,1720122633559,-500.0,0.00013698,2]
[331179712,1720122633568,-500.0,0.00013698,2]
[331179714,1720122633577,-504.34795031,0.00013698,2]
[331179716,1720122633587,-500.0,0.00013698,2]
[331179718,1720122633596,-500.0,0.00013698,2]
[331179720,1720122633605,-500.0,0.00013698,2]
[331179722,1720122633615,-500.0,0.00013698,2]
[331179725,1720122633635,-500.0,0.00013698,2]
[331179727,1720122633646,-500.0,0.00013698,2]
[331179729,1720122633656,-515.22794539,0.00013698,2]
[331179731,1720122633666,-500.0,0.00013698,2]
[331179733,1720122633676,-500.0,0.00013698,2]
[331179735,1720122633687,-500.0,0.00013698,2]
[331179737,1720122633697,-500.0,0.00013698,2]
[331179739,1720122633707,-501.03813691,0.00013698,2]
[331179741,1720122633717,-500.0,0.00013698,2]
[331179742,1720122633727,-500.0,0.00013698,2]
[331179743,1720122633736,-500.0,0.00013698,2]
[331179744,1720122633746,-500.0,0.00013698,2]
[331179745,1720122633756,-500.0,0.00013698,2]
[331179746,1720122633765,-500.0,0.00013698,2]
[331179747,1720122633775,-500.0,0.00013698,2]
[331179748,1720122633785,-500.0,0.00013698,2]
[331179749,1720122633794,-500.0,0.00013698,2]
[331179750,1720122633805,-500.0,0.00013698,2]
[331179751,1720122633814,-216.85297782,0.00013698,2]
[331179752,1720122633825,-500.0,0.00013698,2]
[331179753,1720122633834,-531.09889853,0.00013698,2]
[331179754,1720122633844,-500.0,0.00013698,2]
[331179755,1720122633854,-500.0,0.00013698,2]
[331179756,1720122633863,-500.0,0.00013698,2]
[331179757,1720122633874,-500.0,0.00013698,2]
[331179758,1720122633884,-500.0,0.00013698,2]
[331179759,1720122633894,-500.0,0.00013698,2]
[331179760,1720122633904,-500.0,0.00013698,2]
[331179761,1720122633914,-500.0,0.00013698,2]
[331179762,1720122633924,-500.0,0.00013698,2]
[331179763,1720122633934,-500.0,0.00013698,2]
[331179764,1720122633943,-500.0,0.00013698,2]
[331179765,1720122633953,-553.36074821,0.00013698,2]
[331179766,1720122633963,-500.0,0.00013698,2]
[331179767,1720122633972,-500.0,0.00013698,2]
[331179768,1720122633983,-500.0,0.00013698,2]
[331179769,1720122633992,-500.0,0.00013698,2]
[331179770,1720122634006,-500.0,0.00013698,2]
[331179771,1720122634015,-500.0,0.00013698,2]
[331179772,1720122634025,-500.0,0.00013698,2]
[331179773,1720122634035,-500.0,0.00013698,2]
[331179774,1720122634046,-500.0,0.00013698,2]
[331179775,1720122634056,-500.0,0.00013698,2]
[331179776,1720122634065,-500.0,0.00013698,2]
[331179777,1720122634076,-500.0,0.00013698,2]
[331179778,1720122634086,-500.0,0.00013698,2]
[331179779,1720122634097,-500.0,0.00013698,2]
[331179780,1720122634107,-508.80334545,0.00013698,2]
[331179781,1720122634117,-500.0,0.00013698,2]
[331179782,1720122634126,-500.0,0.00013698,2]
[331179783,1720122634136,-500.75397033,0.00013698,2]
[331179784,1720122634146,-500.0,0.00013698,2]
[331179785,1720122634155,-500.0,0.00013698,2]
[331179786,1720122634165,-500.0,0.00013698,2]
[331179787,1720122634174,-500.0,0.00013698,2]
[331179788,1720122634184,-500.0,0.00013698,2]
[331179789,1720122634193,-500.0,0.00013698,2]
[331179790,1720122634203,-500.0,0.00013698,2]
[331179791,1720122634212,-500.0,0.00013698,2]
[331179792,1720122634221,-500.0,0.00013698,2]
[331179793,1720122634231,-528.88,0.00013698,2]
[331179794,1720122634240,-500.0,0.00013698,2]
[331179795,1720122634250,-500.0,0.00013698,2]
[331179796,1720122634259,-500.0,0.00013698,2]
[331179797,1720122634268,-500.0,0.00013698,2]
[331179798,1720122634278,-504.13425615,0.00013698,2]
[331179799,1720122634287,-500.0,0.00013698,2]
[331179800,1720122634297,-869.86,0.00013698,2]
[331179801,1720122634306,-500.0,0.00013698,2]
[331179802,1720122634315,-500.0,0.00013698,2]
[331179803,1720122634326,-500.0,0.00013698,2]
[331179804,1720122634335,-500.0,0.00013698,2]
[331179805,1720122634345,-500.0,0.00013698,2]
[331179806,1720122634355,-500.0,0.00013698,2]
[331179807,1720122634364,-500.0,0.00013698,2]
[331179808,1720122634373,-500.0,0.00013698,2]
[331179809,1720122634383,-500.0,0.00013698,2]
[331179810,1720122634392,-500.0,0.00013698,2]
[331179811,1720122634402,-500.0,0.00013698,2]
[331179812,1720122634412,-500.0,0.00013698,2]
[331179813,1720122634421,-500.0,0.00013698,2]
[331179814,1720122634431,-1023.67,0.00013698,2]
[331179815,1720122634440,-500.0,0.00013698,2]
[331179816,1720122634449,-500.0,0.00013698,2]
[331179817,1720122634458,-500.0,0.00013698,2]
[331179818,1720122634468,-500.0,0.00013698,2]
[331179819,1720122634480,-500.0,0.00013698,2]
[331179820,1720122634490,-500.0,0.00013698,2]
[331179821,1720122634499,-500.0,0.00013698,2]
[331179822,1720122634509,-500.0,0.00013698,2]
[331179823,1720122634519,-500.0,0.00013698,2]
[331179824,1720122634528,-500.0,0.00013698,2]
[331179825,1720122634538,-500.0,0.00013698,2]
[331179826,1720122634547,-500.0,0.00013698,2]
[331179827,1720122634556,-500.0,0.00013698,2]
[331179828,1720122634566,-500.0,0.00013698,2]
[331179829,1720122634576,-501.36868169,0.00013698,2]
[331179830,1720122634586,-500.0,0.00013698,2]
[331179831,1720122634596,-500.0,0.00013698,2]
[331179832,1720122634605,-500.0,0.00013698,2]
[331179833,1720122634616,-500.0,0.00013698,2]
[331179834,1720122634626,-500.0,0.00013698,2]
[331179835,1720122634636,-500.0,0.00013698,2]
[331179836,1720122634645,-792.91,0.00013698,2]
[331179837,1720122634654,-500.0,0.00013698,2]
[331179838,1720122634664,-500.0,0.00013698,2]
[331179839,1720122634674,-500.0,0.00013698,2]
[331179840,1720122634684,-416.28671804,0.00013698,2]
[331179841,1720122634693,-923.84,0.00013698,2]
[331179842,1720122634703,-500.0,0.00013698,2]
[331179843,1720122634712,-500.0,0.00013698,2]
[331179844,1720122634722,-500.0,0.00013698,2]
[331179845,1720122634732,-500.0,0.00013698,2]
[331179846,1720122634742,-500.0,0.00013698,2]
[331179847,1720122634751,-500.0,0.00013698,2]
[331179848,1720122634761,-500.0,0.00013698,2]
[331179849,1720122634771,-500.0,0.00013698,2]
[331179850,1720122634781,-500.0,0.00013698,2]
[331179851,1720122634791,-500.0,0.00013698,2]
[331179852,1720122634800,-500.0,0.00013698,2]
[331179853,1720122634811,-500.0,0.00013698,2]
[331179854,1720122634820,-310.60040158,0.00013698,2]
[331179855,1720122634830,-500.0,0.00013698,2]
[331179856,1720122634840,-500.0,0.00013698,2]
[331179857,1720122634850,-500.0,0.00013698,2]
[331179858,1720122634860,-500.0,0.00013698,2]
[331179859,1720122634870,-500.0,0.00013698,2]
[331179860,1720122634880,-500.0,0.00013698,2]